fUSD/lending_fUSD_20241223
["ID","MTS","AMOUNT","RATE_DAILY","PERIOD"]
[346456629,1734983461193,-500.0,0.00014246,2]
[346456630,1734983461202,-500.0,0.00014246,2]
[346456631,1734983461214,-500.0,0.00014246,2]
[346456632,1734983461224,-5252.8,0.00014246,2]
[346456633,1734983461234,-6315.37,0.00014246,2]
[346456634,1734983461243,-4008.04,0.00014246,2]
[346456635,1734983461253,-7027.53,0.00014246,2]
[346456636,1734983461264,-500.0,0.00014246,2]
[346456637,1734983461273,-500.0,0.00014246,2]
[346456638,1734983461284,-1696.77,0.00014246,2]
[346456639,1734983461295,-500.0,0.00014246,2]
[346456640,1734983461304,-500.0,0.00014246,2]
[346456641,1734983461314,-500.0,0.00014246,2]
[346456642,1734983461323,-500.0,0.00014246,2]
[346456643,1734983461332,-500.0,0.00014246,2]
[346456644,1734983461342,-500.0,0.00014246,2]
[346456645,1734983461352,-2000.3,0.00014246,2]
[346456646,1734983461361,-3154.52,0.00014246,2]
[346456647,1734983461371,-5968.56,0.00014246,2]
[346456648,1734983461381,-14873.62,0.00014246,2]
[346456649,1734983461391,-2211.27,0.00014246,2]
[346456650,1734983461400,-500.0,0.00014246,2]
[346456651,1734983461410,-500.0,0.00014246,2]
[346456652,1734983461420,-1066.69,0.00014246,2]
[346456653,1734983461430,-500.0,0.00014246,2]
[346456654,1734983461439,-500.0,0.00014246,2]
[346456655,1734983461449,-447.21501162,0.00014246,2]
[346456656,1734983461458,-507.06358408,0.00014246,2]
[346456657,1734983461468,-500.0,0.00014246,2]
[346456658,1734983461477,-500.0,0.00014246,2]
[346456659,1734983461487,-500.0,0.00014246,2]
[346456660,1734983461497,-659.11,0.00014246,2]
[346456661,1734983461507,-500.0,0.00014246,2]
[346456662,1734983461518,-564.57,0.00014246,2]
[346456663,1734983461527,-3866.62,0.00014246,2]
[346456664,1734983461537,-2330.64,0.00014246,2]
[346456665,1734983461547,-783.78,0.00014246,2]
[346456666,1734983461556,-18570.76,0.00014246,2]
[346456667,1734983461566,-500.0,0.00014246,2]
[346456668,1734983461577,-508.97,0.00014246,2]
[346456669,1734983461586,-829.84,0.00014246,2]
[346456670,1734983461597,-20926.66,0.00014246,2]
[346456671,1734983461607,-500.0,0.00014246,2]
[346456672,1734983461616,-500.0,0.00014246,2]
[346456673,1734983461626,-3757.16,0.00014246,2]
[346456674,1734983461635,-607.52,0.00014246,2]
[346456675,1734983461645,-7925.4,0.00014246,2]
[346456676,1734983461654,-2302.97,0.00014246,2]
[346456677,1734983461664,-500.0,0.00014246,2]
[346456678,1734983461673,-500.0,0.00014246,2]
[346456679,1734983461682,-500.0,0.00014246,2]
[346456680,1734983461691,-7966.95,0.00014246,2]
[346456681,1734983461701,-1003.84,0.00014246,2]
[346456682,1734983461710,-2515.91,0.00014246,2]
[346456683,1734983461720,-2630.63,0.00014246,2]
[346456684,1734983461729,-698.68,0.00014246,2]
[346456685,1734983461738,-500.0,0.00014246,2]
[346456686,1734983461747,-839.13,0.00014246,2]
[346456687,1734983461756,-9927.13,0.00014246,2]
[346456688,1734983461767,-1217.3,0.00014246,2]
[346456689,1734983461776,-2519.57,0.00014246,2]
[346456690,1734983461786,-604.94253437,0.00014246,2]
[346456691,1734983461795,-1299.48,0.00014246,2]
[346456692,1734983461805,-500.0,0.00014246,2]
[346456693,1734983461814,-4244.12,0.00014246,2]
[346456694,1734983461824,-1241.24,0.00014246,2]
[346456695,1734983461834,-500.0,0.00014246,2]
[346456696,1734983461844,-500.0,0.00014246,2]
[346456697,1734983461854,-1685.46,0.00014246,2]
[346456698,1734983461863,-500.0,0.00014246,2]
[346456699,1734983461874,-500.0,0.00014246,2]
[346456700,1734983461884,-1846.67,0.00014246,2]
[346456701,1734983461893,-500.0,0.00014246,2]
[346456702,1734983461903,-614.81,0.00014246,2]
[346456703,1734983461913,-500.0,0.00014246,2]
[346456704,1734983461924,-3928.29,0.00014246,2]
[346456705,1734983461934,-500.0,0.00014246,2]
[346456706,1734983461943,-500.0,0.00014246,2]
[346456707,1734983461953,-4088.25,0.00014246,2]
[346456708,1734983461963,-185.06220574,0.00014246,2]
[346456709,1734983461973,-2122.09,0.00014246,2]
[346456710,1734983461983,-500.0,0.00014246,2]
[346456711,1734983461993,-695.21,0.00014246,2]
[346456712,1734983462003,-500.0,0.00014246,2]
[346456713,1734983462015,-500.0,0.00014246,2]
[346456714,1734983462025,-3723.91,0.00014246,2]
[346456715,1734983462036,-1404.9,0.00014246,2]
[346456716,1734983462046,-500.0,0.00014246,2]
[346456717,1734983462331,-8672.72,0.00014246,2]
[346456718,1734983462344,-500.0,0.00014246,2]
[346456719,1734983462353,-500.0,0.00014246,2]
[346456720,1734983462362,-500.0,0.00014246,2]
[346456721,1734983462372,-1878.68,0.00014246,2]
[346456722,1734983462381,-1063.46,0.00014246,2]
[346456723,1734983462391,-7447.88,0.00014246,2]
[346456724,1734983462400,-26356.9,0.00014246,2]
[346456725,1734983462410,-8864.44,0.00014246,2]
[346456726,1734983462419,-2573.11,0.00014246,2]
[346456727,1734983462428,-3886.04,0.00014246,2]
[346456728,1734983462437,-500.0,0.00014246,2]
[346456729,1734983462447,-5445.13,0.00014246,2]
[346456730,1734983462456,-1319.96,0.00014246,2]
[346456731,1734983462465,-500.0,0.00014246,2]
[346456732,1734983462474,-302.91851434,0.00014246,2]
[346456733,1734983462485,-500.0,0.00014246,2]
[346456734,1734983462494,-3366.1,0.00014246,2]
[346456735,1734983462504,-500.0,0.00014246,2]
[346456736,1734983462514,-500.0,0.00014246,2]
[346456737,1734983462524,-8257.73,0.00014246,2]
[346456738,1734983462533,-1348.11,0.00014246,2]
[346456739,1734983462543,-500.0,0.00014246,2]
[346456740,1734983462552,-1344.55,0.00014246,2]
[346456741,1734983462562,-590.09,0.00014246,2]
[346456742,1734983462572,-1044.67,0.00014246,2]
[346456743,1734983462582,-1845.89,0.00014246,2]
[346456744,1734983462592,-2303.4,0.00014246,2]
[346456745,1734983462601,-3629.68,0.00014246,2]
[346456746,1734983462611,-500.0,0.00014246,2]
[346456747,1734983462620,-646.74,0.00014246,2]
[346456748,1734983462630,-1782.54,0.00014246,2]
[346456749,1734983462639,-1508.2,0.00014246,2]
[346456750,1734983462649,-514.25400868,0.00014246,2]
[346456751,1734983462658,-3087.07,0.00014246,2]
[346456752,1734983462668,-500.0,0.00014246,2]
[346456753,1734983462678,-1473.1,0.00014246,2]
[346456754,1734983462688,-519.14979986,0.00014246,2]
[346456755,1734983462698,-2479.51,0.00014246,2]
[346456756,1734983462707,-4816.5,0.00014246,2]
[346456757,1734983462717,-500.0,0.00014246,2]
[346456758,1734983462726,-614.37,0.00014246,2]
[346456759,1734983462736,-594.99,0.00014246,2]
[346456760,1734983462745,-500.0,0.00014246,2]
[346456761,1734983462755,-1302.53,0.00014246,2]
[346456762,1734983462765,-2115.39,0.00014246,2]
[346456763,1734983462774,-1084.22,0.00014246,2]
[346456764,1734983462784,-4086.58,0.00014246,2]
[346456765,1734983462793,-500.0,0.00014246,2]
[346456766,1734983462803,-1886.31,0.00014246,2]
[346456767,1734983462813,-166.26,0.00014261,2]
[346456768,1734983462822,-151.53550779,0.00014332,2]
[346456769,1734983462832,-468.6,0.0001435,2]
[346456770,1734983462841,-468.6,0.00014353,2]
[346456771,1734983462851,-468.6,0.00014357,2]
[346456772,1734983462860,-468.6,0.00014361,2]
[346456773,1734983462869,-468.6,0.00014365,2]
[346456774,1734983462879,-468.6,0.00014369,2]
[346456775,1734983462888,-468.6,0.00014372,2]
[346456776,1734983462898,-468.6,0.00014376,2]
[346456777,1734983462907,-182.71,0.00014378,2]
[346456778,1734983462917,-468.6,0.0001438,2]
[346456779,1734983462927,-468.6,0.00014384,2]
[346456780,1734983462937,-468.6,0.00014387,2]
[346456781,1734983462947,-468.6,0.00014391,2]
[346456782,1734983462956,-468.6,0.00014395,2]
[346456783,1734983462965,-468.6,0.00014399,2]
[346456784,1734983462979,-468.6,0.00014403,2]
[346456785,1734983462989,-468.6,0.00014406,2]
[346456786,1734983462998,-468.6,0.0001441,2]
[346456787,1734983463008,-468.6,0.00014414,2]
[346456788,1734983463019,-468.6,0.00014418,2]
[346456789,1734983463029,-468.6,0.00014421,2]
[346456790,1734983463039,-52723.65478891,0.00014431,2]
[346456791,1734983463049,-151.0,0.00014432,2]
[346456792,1734983463059,-1325.94,0.0001444,2]
[346456793,1734983463068,-160.10784229,0.00014478,2]
[346456794,1734983463078,-160.11116109,0.00014478,2]
[346456795,1734983463088,-200.52515986,0.00014478,2]
[346456796,1734983463098,-500.0,0.00014478,2]
[346456797,1734983463108,-318.95204584,0.0001451,2]
[346456798,1734983463117,-562.42,0.00014519,2]
[346456799,1734983463127,-3858.37,0.00014519,2]
[346456800,1734983463137,-4101.31,0.00014519,2]
[346456801,1734983463146,-7168.53,0.00014519,2]
[346456802,1734983463156,-7733.77,0.00014519,2]
[346456803,1734983463166,-37490.71,0.00014519,2]
[346456804,1734983463175,-4045.76,0.00014519,2]
[346456805,1734983463185,-3336.73,0.00014519,2]
[346456806,1734983463194,-1980.4,0.00014519,2]
[346456807,1734983463204,-5333.98,0.00014519,2]
[346456808,1734983463217,-27080.99,0.00014519,2]
[346456809,1734983463227,-1435.78,0.00014519,2]
[346456810,1734983463237,-3942.55,0.00014519,2]
[346456811,1734983463247,-3489.33,0.00014519,2]
[346456812,1734983463258,-2639.66,0.00014519,2]
[346456813,1734983463268,-500.0,0.00014519,2]
[346456814,1734983463278,-648.57349868,0.00014519,2]
[346456815,1734983463289,-5019.99,0.00014519,2]
[346456816,1734983463298,-500.0,0.00014519,2]
[346456817,1734983463308,-1258.46,0.00014519,2]
[346456818,1734983463318,-3190.49,0.00014519,2]
[346456819,1734983463328,-3377.35,0.00014519,2]
[346456820,1734983463337,-757.99,0.0001452,2]
[346456821,1734983463347,-500.0,0.0001452,2]
[346456822,1734983463357,-1506.47,0.0001452,2]
[346456823,1734983463367,-500.0,0.0001452,2]
[346456824,1734983463377,-500.0,0.0001452,2]
[346456825,1734983463387,-622.17,0.0001452,2]
[346456826,1734983463396,-500.0,0.0001452,2]
[346456827,1734983463406,-745.34,0.0001452,2]
[346456828,1734983463415,-1355.56,0.0001452,2]
[346456829,1734983463424,-500.0,0.0001452,2]
[346456830,1734983463433,-500.0,0.0001452,2]
[346456831,1734983463443,-500.0,0.0001452,2]
[346456832,1734983463452,-500.0,0.0001452,2]
[346456833,1734983463462,-943.39,0.0001452,2]
[346456834,1734983463471,-500.0,0.0001452,2]
[346456835,1734983463480,-500.0,0.0001452,2]
[346456836,1734983463490,-500.0,0.0001452,2]
[346456837,1734983463499,-500.0,0.0001452,2]
[346456838,1734983463508,-500.0,0.0001452,2]
[346456839,1734983463519,-500.0,0.0001452,2]
[346456840,1734983463528,-500.0,0.0001452,2]
[346456841,1734983463538,-1112.52,0.0001452,2]
[346456842,1734983463547,-500.0,0.0001452,2]
[346456843,1734983463556,-500.0,0.0001452,2]
[346456844,1734983463566,-500.0,0.0001452,2]
[346456845,1734983463575,-500.0,0.0001452,2]
[346456846,1734983463584,-500.0,0.0001452,2]
[346456847,1734983463593,-300.80583517,0.0001452,2]
[346456848,1734983463602,-790.69,0.0001452,2]
[346456849,1734983463611,-500.0,0.0001452,2]
[346456850,1734983463620,-500.0,0.0001452,2]
[346456851,1734983463629,-500.0,0.0001452,2]
[346456852,1734983463639,-855.0,0.0001452,2]
[346456853,1734983463648,-500.0,0.0001452,2]
[346456854,1734983463657,-876.69,0.0001452,2]
[346456855,1734983463666,-562.06,0.0001452,2]
[346456856,1734983463676,-500.0,0.0001452,2]
[346456857,1734983463685,-847.08,0.0001452,2]
[346456858,1734983463694,-867.59,0.0001452,2]
[346456859,1734983463704,-500.0,0.0001452,2]
[346456860,1734983463714,-500.0,0.0001452,2]
[346456861,1734983463723,-895.5,0.0001452,2]
[346456862,1734983463733,-500.0,0.0001452,2]
[346456863,1734983463742,-500.0,0.0001452,2]
[346456864,1734983463752,-500.0,0.0001452,2]
[346456865,1734983463762,-1304.71,0.0001452,2]
[346456866,1734983463772,-501.05088843,0.0001452,2]
[346456867,1734983463782,-500.0,0.0001452,2]
[346456868,1734983463792,-500.0,0.0001452,2]
[346456869,1734983463802,-500.0,0.0001452,2]
[346456870,1734983463812,-1693.88,0.0001452,2]
[346456871,1734983463821,-500.0,0.0001452,2]
[346456872,1734983463831,-500.0,0.0001452,2]
[346456873,1734983463841,-500.0,0.0001452,2]
[346456874,1734983463851,-536.47,0.0001452,2]
[346456875,1734983463861,-500.0,0.0001452,2]
[346456876,1734983463871,-542.14378136,0.0001452,2]
[346456877,1734983463881,-500.0,0.0001452,2]
[346456878,1734983463891,-500.0,0.0001452,2]
[346456879,1734983463901,-500.0,0.0001452,2]
[346456880,1734983463911,-500.0,0.0001452,2]
[346456881,1734983463921,-704.56,0.0001452,2]
[346456882,1734983463931,-1063.61,0.0001452,2]
[346456883,1734983463941,-500.0,0.0001452,2]
[346456884,1734983463951,-729.4,0.0001452,2]
[346456885,1734983463960,-500.0,0.0001452,2]
[346456886,1734983463970,-500.0,0.0001452,2]
[346456887,1734983463980,-500.0,0.0001452,2]
[346456888,1734983463990,-1288.05,0.0001452,2]
[346456889,1734983464000,-504.48994447,0.0001452,2]
[346456890,1734983464010,-500.0,0.0001452,2]
[346456891,1734983464020,-500.0,0.0001452,2]
[346456892,1734983464030,-876.88,0.0001452,2]
[346456893,1734983464040,-500.0,0.0001452,2]
[346456894,1734983464050,-500.0,0.0001452,2]
[346456895,1734983464060,-500.0,0.0001452,2]
[346456896,1734983464070,-500.0,0.0001452,2]
[346456897,1734983464080,-500.0,0.0001452,2]
[346456898,1734983464090,-500.0,0.0001452,2]
[346456899,1734983464101,-627.92,0.0001452,2]
[346456900,1734983464112,-837.11,0.0001452,2]
[346456901,1734983464122,-500.0,0.0001452,2]
[346456902,1734983464132,-500.0,0.0001452,2]
[346456903,1734983464142,-500.0,0.0001452,2]
[346456904,1734983464152,-715.29,0.0001452,2]
[346456905,1734983464161,-500.0,0.0001452,2]
[346456906,1734983464171,-500.0,0.0001452,2]
[346456907,1734983464180,-503.14,0.0001452,2]
[346456908,1734983464190,-500.0,0.0001452,2]
[346456909,1734983464200,-693.1,0.0001452,2]
[346456910,1734983464210,-1639.04,0.0001452,2]
[346456911,1734983464224,-500.0,0.0001452,2]
[346456912,1734983464233,-500.0,0.0001452,2]
[346456913,1734983464243,-909.84,0.0001452,2]
[346456914,1734983464253,-1025.51,0.0001452,2]
[346456915,1734983464264,-155.940262,0.0001452,2]
[346456916,1734983464274,-154.072404,0.0001452,2]
[346456917,1734983464285,-500.0,0.0001452,2]
[346456918,1734983464295,-2789.796411,0.0001452,2]
[346456919,1734983464305,-500.0,0.0001452,2]
[346456920,1734983464315,-3350.644444,0.0001452,2]
[346456921,1734983464324,-1267.55,0.0001452,2]
[346456922,1734983464333,-500.0,0.0001452,2]
[346456923,1734983464344,-500.0,0.0001452,2]
[346456924,1734983464353,-500.0,0.0001452,2]
[346456925,1734983464364,-503.20209987,0.0001452,2]
[346456926,1734983464374,-500.0,0.0001452,2]
[346456927,1734983464384,-955.34,0.0001452,2]
[346456928,1734983464393,-500.0,0.0001452,2]
[346456929,1734983464403,-500.0,0.0001452,2]
[346456930,1734983464413,-1230.42,0.0001452,2]
[346456931,1734983464423,-500.0,0.0001452,2]
[346456932,1734983464432,-1124.42,0.0001452,2]
[346456933,1734983464442,-500.0,0.0001452,2]
[346456934,1734983464452,-500.0,0.0001452,2]
[346456935,1734983464462,-500.0,0.0001452,2]
[346456936,1734983464471,-500.0,0.0001452,2]
[346456937,1734983464481,-649.71,0.0001452,2]
[346456938,1734983464491,-500.0,0.0001452,2]
[346456939,1734983464500,-500.0,0.0001452,2]
[346456940,1734983464510,-500.0,0.0001452,2]
[346456941,1734983464521,-713.56,0.0001452,2]
[346456942,1734983464530,-500.0,0.0001452,2]
[346456943,1734983464539,-500.0,0.0001452,2]
[346456944,1734983464549,-500.0,0.0001452,2]
[346456945,1734983464558,-500.0,0.0001452,2]
[346456946,1734983464568,-500.0,0.0001452,2]
[346456947,1734983464577,-500.0,0.0001452,2]
[346456948,1734983464587,-500.0,0.0001452,2]
[346456949,1734983464596,-500.0,0.0001452,2]
[346456950,1734983464606,-1323.13,0.0001452,2]
[346456951,1734983464615,-500.0,0.0001452,2]
[346456952,1734983464624,-958.59,0.0001452,2]
[346456953,1734983464634,-938.95,0.0001452,2]
[346456954,1734983464739,-1909.64,0.0001452,2]
[346456955,1734983464748,-500.0,0.0001452,2]
[346456956,1734983464757,-1467.51,0.0001452,2]
[346456957,1734983464769,-958.62,0.0001452,2]
[346456958,1734983464781,-500.0,0.0001452,2]
[346456959,1734983464791,-563.5,0.0001452,2]
[346456960,1734983464800,-1353.65,0.0001452,2]
[346456961,1734983464810,-743.02,0.0001452,2]
[346456962,1734983464819,-500.0,0.0001452,2]
[346456963,1734983464828,-2120.2,0.0001452,2]
[346456964,1734983464838,-768.8,0.0001452,2]
[346456965,1734983464847,-999.63,0.0001452,2]
[346456966,1734983464856,-500.0,0.0001452,2]
[346456967,1734983464865,-500.0,0.0001452,2]
[346456968,1734983464874,-517.25016098,0.0001452,2]
[346456969,1734983464883,-730.43,0.0001452,2]
[346456970,1734983464892,-500.0,0.0001452,2]
[346456971,1734983464902,-712.07,0.0001452,2]
[346456972,1734983464911,-1571.45,0.0001452,2]
[346456973,1734983464920,-500.0,0.0001452,2]
[346456974,1734983464929,-500.0,0.0001452,2]
[346456975,1734983464939,-1386.96,0.0001452,2]
[346456976,1734983464948,-2428.76,0.0001452,2]
[346456977,1734983464956,-500.0,0.0001452,2]
[346456978,1734983464966,-1431.08,0.0001452,2]
[346456979,1734983464975,-500.0,0.0001452,2]
[346456980,1734983464985,-500.0,0.0001452,2]
[346456981,1734983464995,-500.0,0.0001452,2]
[346456982,1734983465005,-500.0,0.0001452,2]
[346456983,1734983465017,-500.0,0.0001452,2]
[346456984,1734983465028,-2535.1,0.0001452,2]
[346456985,1734983465039,-590.71,0.0001452,2]
[346456986,1734983465050,-500.0,0.0001452,2]
[346456987,1734983465061,-500.0,0.0001452,2]
[346456988,1734983465071,-500.0,0.0001452,2]
[346456989,1734983465082,-500.0,0.0001452,2]
[346456990,1734983465093,-500.0,0.0001452,2]
[346456991,1734983465103,-500.0,0.0001452,2]
[346456992,1734983465115,-466.03,0.0001452,2]
[346456993,1734983465125,-500.0,0.0001452,2]
[346456994,1734983465135,-647.68,0.0001452,2]
[346456995,1734983465145,-2179.1,0.0001452,2]
[346456996,1734983465155,-500.0,0.0001452,2]
[346456997,1734983465165,-503.57,0.0001452,2]
[346456998,1734983465175,-1741.94,0.0001452,2]
[346456999,1734983465184,-533.93,0.0001452,2]
[346457000,1734983465195,-500.0,0.0001452,2]
[346457001,1734983465205,-506.11,0.0001452,2]
[346457002,1734983465220,-2546.21,0.0001452,2]
[346457003,1734983465232,-500.0,0.0001452,2]
[346457004,1734983465242,-500.0,0.0001452,2]
[346457005,1734983465251,-561.95979008,0.0001452,2]
[346457006,1734983465260,-500.0,0.0001452,2]
[346457007,1734983465271,-2384.93,0.0001452,2]
[346457008,1734983465280,-500.0,0.0001452,2]
[346457009,1734983465289,-500.0,0.0001452,2]
[346457010,1734983465299,-1472.51,0.0001452,2]
[346457011,1734983465308,-739.46,0.0001452,2]
[346457012,1734983465318,-2040.74,0.0001452,2]
[346457013,1734983465327,-500.0,0.0001452,2]
[346457014,1734983465336,-500.0,0.0001452,2]
[346457015,1734983465345,-2108.54,0.0001452,2]
[346457016,1734983465353,-500.0,0.0001452,2]
[346457017,1734983465362,-500.0,0.0001452,2]
[346457018,1734983465371,-1103.36,0.0001452,2]
[346457019,1734983465381,-500.0,0.0001452,2]
[346457020,1734983465390,-500.0,0.0001452,2]
[346457021,1734983465399,-603.59,0.0001452,2]
[346457022,1734983465408,-503.86,0.0001452,2]
[346457023,1734983465417,-500.0,0.0001452,2]
[346457024,1734983465426,-1314.39,0.0001452,2]
[346457025,1734983465435,-681.79,0.0001452,2]
[346457026,1734983465443,-500.0,0.0001452,2]
[346457027,1734983465452,-1474.25,0.0001452,2]
[346457028,1734983465461,-569.96,0.0001452,2]
[346457029,1734983465471,-500.0,0.0001452,2]
[346457030,1734983465480,-500.0,0.0001452,2]
[346457031,1734983465488,-2526.97,0.0001452,2]
[346457032,1734983465497,-500.0,0.0001452,2]
[346457033,1734983465507,-588.45,0.0001452,2]
[346457034,1734983465519,-562.03,0.0001452,2]
[346457035,1734983465528,-500.0,0.0001452,2]
[346457036,1734983465537,-372.81,0.0001452,2]
[346457037,1734983465547,-500.0,0.0001452,2]
[346457038,1734983465556,-2097.31,0.0001452,2]
[346457039,1734983465566,-596.3547142,0.0001452,2]
[346457040,1734983465575,-500.0,0.0001452,2]
[346457041,1734983465584,-501.42933698,0.0001452,2]
[346457042,1734983465593,-2272.82,0.0001452,2]
[346457043,1734983465603,-1399.67,0.0001452,2]
[346457044,1734983465611,-1081.13,0.0001452,2]
[346457045,1734983465620,-500.0,0.0001452,2]
[346457046,1734983465629,-952.35,0.0001452,2]
[346457047,1734983465638,-500.0,0.0001452,2]
[346457048,1734983465648,-766.53,0.0001452,2]
[346457049,1734983465657,-500.0,0.0001452,2]
[346457050,1734983465666,-500.0,0.0001452,2]
[346457051,1734983465675,-971.56,0.0001452,2]
[346457052,1734983465685,-1033.9,0.0001452,2]
[346457053,1734983465694,-908.96,0.0001452,2]
[346457054,1734983465703,-1920.11,0.0001452,2]
[346457055,1734983465712,-307.87626113,0.0001452,2]
[346457056,1734983465721,-500.0,0.0001452,2]
[346457057,1734983465730,-500.0,0.0001452,2]
[346457058,1734983465739,-500.0,0.0001452,2]
[346457059,1734983465748,-500.0,0.0001452,2]
[346457060,1734983465758,-500.0,0.0001452,2]
[346457061,1734983465769,-500.0,0.0001452,2]
[346457062,1734983465778,-1220.95,0.0001452,2]
[346457063,1734983465787,-500.0,0.0001452,2]
[346457064,1734983465797,-500.0,0.0001452,2]
[346457065,1734983465806,-500.0,0.0001452,2]
[346457066,1734983465815,-2597.65,0.0001452,2]
[346457067,1734983465825,-549.68,0.0001452,2]
[346457068,1734983465834,-500.0,0.0001452,2]
[346457069,1734983465843,-500.0,0.0001452,2]
[346457070,1734983465852,-500.0,0.0001452,2]
[346457071,1734983465862,-1679.77,0.0001452,2]
[346457072,1734983465871,-500.0,0.0001452,2]
[346457073,1734983465880,-500.0,0.0001452,2]
[346457074,1734983465889,-500.0,0.0001452,2]
[346457075,1734983465898,-500.0,0.0001452,2]
[346457076,1734983465907,-500.0,0.0001452,2]
[346457077,1734983465917,-2479.89,0.0001452,2]
[346457078,1734983465926,-500.0,0.0001452,2]
[346457079,1734983465935,-500.0,0.0001452,2]
[346457080,1734983465944,-500.0,0.0001452,2]
[346457081,1734983465953,-884.3,0.0001452,2]
[346457082,1734983465962,-533.99,0.0001452,2]
[346457083,1734983465971,-1337.77,0.0001452,2]
[346457084,1734983465980,-1234.01,0.0001452,2]
[346457085,1734983465989,-500.0,0.0001452,2]
[346457086,1734983465999,-500.0,0.0001452,2]
[346457087,1734983466008,-1693.27,0.0001452,2]
[346457088,1734983466019,-500.0,0.0001452,2]
[346457089,1734983466028,-1639.66,0.0001452,2]
[346457090,1734983466038,-500.0,0.0001452,2]
[346457091,1734983466047,-1258.33,0.0001452,2]
[346457092,1734983466057,-321.52084353,0.0001452,2]
[346457093,1734983466066,-500.0,0.0001452,2]
[346457094,1734983466076,-865.68,0.0001452,2]
[346457095,1734983466085,-500.0,0.0001452,2]
[346457096,1734983466096,-500.0,0.0001452,2]
[346457097,1734983466105,-1242.29,0.0001452,2]
[346457098,1734983466114,-500.0,0.0001452,2]
[346457099,1734983466123,-558.44,0.0001452,2]
[346457100,1734983466133,-612.44158213,0.0001452,2]
[346457101,1734983466142,-500.0,0.0001452,2]
[346457102,1734983466151,-1883.5,0.0001452,2]
[346457103,1734983466160,-500.0,0.0001452,2]
[346457104,1734983466169,-500.0,0.0001452,2]
[346457105,1734983466178,-500.0,0.0001452,2]
[346457106,1734983466187,-500.0,0.0001452,2]
[346457107,1734983466196,-1457.31,0.0001452,2]
[346457108,1734983466205,-500.0,0.0001452,2]
[346457109,1734983466215,-500.0,0.0001452,2]
[346457110,1734983466227,-500.0,0.0001452,2]
[346457111,1734983466235,-744.66,0.0001452,2]
[346457112,1734983466245,-500.0,0.0001452,2]
[346457113,1734983466254,-614.05,0.0001452,2]
[346457114,1734983466265,-500.0,0.0001452,2]
[346457115,1734983466275,-505.95,0.0001452,2]
[346457116,1734983466284,-500.0,0.0001452,2]
[346457117,1734983466294,-1106.29,0.0001452,2]
[346457118,1734983466303,-825.99,0.0001452,2]
[346457119,1734983466313,-614.73,0.0001452,2]
[346457120,1734983466322,-598.56,0.0001452,2]
[346457121,1734983466331,-2428.41,0.0001452,2]
[346457122,1734983466340,-500.0,0.0001452,2]
[346457123,1734983466350,-647.89,0.0001452,2]
[346457124,1734983466360,-555.89,0.0001452,2]
[346457125,1734983466369,-609.18763277,0.0001452,2]
[346457126,1734983466378,-1850.68,0.0001452,2]
[346457127,1734983466387,-733.51,0.0001452,2]
[346457128,1734983466397,-1395.61,0.0001452,2]